bitfinex-derivatives/quotes_ETHF0:USTF0_20240920
["timestamp","ask_amount","ask_price","bid_price","bid_amount"]
[1726874093304,2.94824749,2549.7,2549.5,0.3796]
[1726874093500,2.94824749,2549.7,2549.5,1.40755113]
[1726874093703,1.41,2549.7,2549.5,1.40755113]
[1726874093904,2.94824749,2549.7,2549.5,1.40755113]
[1726874094204,1.41,2549.7,2549.5,1.40755113]
[1726874094407,2.94824749,2549.7,2549.5,1.40755113]
[1726874094606,1.41,2549.6,2549.5,0.3796]
[1726874094808,1.41,2549.6,2549.5,1.40755113]
[1726874095505,1.41,2549.6,2549.5,0.3796]
[1726874095697,1.41,2549.6,2549.5,1.40755113]
[1726874095897,1.41,2549.6,2549.5,0.3796]
[1726874102701,1.7825,2549.6,2549.5,0.3796]
[1726874103109,0.3725,2549.6,2549.5,0.3796]
[1726874103305,1.41,2549.7,2549.5,0.3796]
[1726874103809,1.41,2549.7,2549.5,0.77176]
[1726874104509,1.41,2549.7,2549.5,1.79971113]
[1726874104907,5.50714749,2549.8,2549.6,0.39215]
[1726874105112,3.9689,2549.8,2549.6,0.4055]
[1726874107102,1.41,2549.7,2549.6,0.4055]
[1726874109406,1.41,2549.7,2549.5,1.40755113]
[1726874109802,1.41,2549.7,2549.5,1.79972113]
[1726874114121,1.41,2549.7,2549.5,1.40755113]
[1726874117816,1.41,2549.7,2549.5,1.79972113]
[1726874118812,1.41,2549.7,2549.5,1.40755113]
[1726874119629,2.94824749,2549.7,2549.5,1.40755113]
[1726874120422,1.41,2549.7,2549.6,1.02795113]
[1726874120621,2.94824749,2549.7,2549.6,1.02795113]
[1726874123626,2.94824749,2549.7,2549.6,2.32439209]
[1726874123824,2.94824749,2549.7,2549.6,1.02795113]
[1726874129431,6.15604749,2549.7,2549.6,1.02795113]
[1726874130038,2.94824749,2549.7,2549.6,1.02795113]
[1726874130227,6.15604749,2549.7,2549.6,1.02795113]
[1726874130431,6.15604749,2549.7,2549.6,2.32456294]
[1726874131035,6.15604749,2549.7,2549.6,2.3246087]
[1726874131432,4.6178,2549.7,2549.6,2.3246087]
[1726874132138,6.15839154,2549.7,2549.6,2.3246087]
[1726874132332,6.55053154,2549.7,2549.6,2.3246087]
[1726874132539,5.00994,2549.7,2549.6,2.32475225]
[1726874132739,5.00994,2549.7,2549.6,2.32475126]
[1726874133041,5.00994,2549.7,2549.6,1.02795113]
[1726874133342,7.06445016,2549.7,2549.6,1.02795113]
[1726874133534,11.96721016,2549.7,2549.6,1.02795113]
[1726874133838,0.3922,2549.3,2549.2,0.366]
[1726874134037,0.3922,2549.3,2549.1,1.54382476]
[1726874134038,0.39222,2549.2,2549.1,1.54382476]
[1726874134236,0.79562,2549.2,2549.1,1.29273057]
[1726874134540,1.94334911,2549.2,2549.0,1.93607476]
[1726874134839,1.41,2549.1,2549.0,1.93607476]
[1726874135137,1.41,2549.1,2549.0,3.61188463]
[1726874136437,1.41,2549.1,2549.0,3.21963463]
[1726874137427,1.41,2549.1,2549.0,1.67580987]
[1726874138730,1.41,2549.1,2549.0,0.3835]
[1726874138931,1.80223,2549.1,2548.8,2.29572476]
[1726874139132,1.41,2548.9,2548.8,1.92972476]
[1726874139330,1.41,2548.9,2548.8,1.67736162]
[1726874140339,1.41,2548.9,2548.8,0.3859]
[1726874140837,1.41,2548.9,2548.8,1.6767676]
[1726874141137,1.41,2548.9,2548.8,0.3859]
[1726874143643,1.41,2548.9,2548.8,0.77818]
[1726874143839,1.41,2548.9,2548.8,2.06844908]
[1726874144143,1.41,2548.9,2548.8,0.77818]
[1726874144342,1.41,2548.9,2548.8,0.3859]
[1726874154739,0.39229,2548.7,2548.6,0.366]
[1726874154944,0.39229,2548.7,2548.4,0.3773]
[1726874154945,0.39232,2548.5,2548.4,0.3773]
[1726874155248,1.80232,2548.5,2548.4,0.3773]
[1726874157846,0.39236,2548.3,2548.1,0.366]
[1726874158050,0.39236,2548.3,2548.0,0.7854]
[1726874158051,1.41,2548.2,2548.0,0.7854]
[1726874158350,1.41,2548.1,2548.0,0.7854]
[1726874158645,1.41,2548.1,2548.0,1.1778]
[1726874159452,1.41,2548.1,2548.0,0.7854]
[1726874159751,3.2078,2548.3,2548.0,0.7854]
[1726874159752,1.41,2548.2,2548.0,0.7854]
[1726874160939,1.41,2548.2,2548.0,1.1778]
[1726874161249,1.41,2548.2,2548.0,0.7854]
[1726874166947,1.80238,2548.2,2548.0,0.7854]
[1726874167149,1.80238,2548.2,2548.0,0.408]
[1726874167756,1.41,2548.2,2548.0,0.408]
[1726874169250,0.39241,2548.0,2547.8,0.3896]
[1726874169443,1.7849,2547.9,2547.7,0.4083]
[1726874169643,2.1748,2547.9,2547.7,0.4083]
[1726874170651,2.1748,2547.9,2547.7,0.80075]
[1726874171051,2.1748,2547.9,2547.7,0.4083]
[1726874171244,2.1748,2547.9,2547.7,0.80074]
[1726874173553,2.1748,2547.9,2547.7,0.4083]
[1726874174550,2.1748,2547.9,2547.7,0.80074]
[1726874174754,1.7849,2547.9,2547.7,0.80074]
[1726874175255,1.7849,2547.9,2547.7,0.4083]
[1726874177358,1.41,2547.9,2547.7,0.4083]
[1726874180854,1.41,2547.9,2547.7,0.80075]
[1726874181865,1.41,2547.9,2547.7,0.4083]
[1726874185559,1.41,2547.9,2547.7,0.80074]
[1726874188860,1.41,2547.9,2547.8,0.39243]
[1726874189063,1.41,2547.9,2547.7,0.80074]
[1726874191858,1.41,2547.9,2547.7,0.4083]
[1726874192161,0.4073,2547.8,2547.5,0.366]
[1726874192362,4.6178,2547.7,2547.4,0.76908]
[1726874192558,1.41,2547.5,2547.4,0.76908]
[1726874192762,0.82105472,2547.5,2547.4,0.76908]
[1726874193270,0.82105472,2547.5,2547.4,0.3766]
[1726874205469,0.82105472,2547.5,2547.4,0.76909]
[1726874205664,3.2078,2547.6,2547.4,0.3766]
[1726874205665,4.6178,2547.6,2547.4,0.3766]
[1726874205872,1.41,2547.5,2547.4,0.3766]
[1726874208070,3.2078,2547.6,2547.5,0.39248]
[1726874208362,3.2078,2547.6,2547.4,0.76908]
[1726874208675,4.6178,2547.6,2547.4,0.76908]
[1726874208872,4.6178,2547.6,2547.4,0.3766]
[1726874209173,1.41,2547.6,2547.4,0.76909]
[1726874209371,4.6178,2547.6,2547.4,0.76909]
[1726874209577,1.41,2547.6,2547.4,0.76909]
[1726874209766,4.6178,2547.6,2547.4,0.76909]
[1726874210873,1.41,2547.6,2547.4,0.76909]
[1726874211072,4.6178,2547.6,2547.4,0.3766]
[1726874211768,1.41,2547.6,2547.4,0.3766]
[1726874212466,4.6178,2547.6,2547.4,0.3766]
[1726874213068,1.41,2547.6,2547.4,0.3766]
[1726874213279,4.6178,2547.6,2547.4,0.3766]
[1726874213574,4.6178,2547.6,2547.4,0.76909]
[1726874214080,0.39249,2547.4,2547.3,1.54382476]
[1726874214268,0.39253,2547.2,2547.0,0.366]
[1726874214471,4.6178,2547.1,2546.9,0.3714]
[1726874214865,4.6178,2547.1,2547.0,0.3766]
[1726874215379,4.6178,2547.1,2546.9,0.3714]
[1726874215678,4.6178,2547.1,2546.7,0.366]
[1726874215679,0.39259,2546.8,2546.7,0.366]
[1726874215877,5.01039,2546.8,2546.4,1.90982476]
[1726874216072,1.1562,2546.7,2546.5,1.28552208]
[1726874216273,0.3854,2546.7,2546.3,1.92042476]
[1726874216475,1.41,2547.0,2546.8,0.39257]
[1726874216779,1.41,2547.0,2546.9,1.1514]
[1726874219379,3.2078,2547.1,2546.9,1.1514]
[1726874219380,3.2078,2547.1,2547.0,0.39255]
[1726874219567,3.2078,2547.1,2546.9,5.0778]
[1726874219568,3.2078,2547.1,2546.9,1.1514]
[1726874219771,3.2078,2547.1,2547.0,0.39255]
[1726874220576,1.41,2547.3,2547.1,0.39254]
[1726874220779,1.41,2547.3,2547.0,3.9264]
[1726874220780,1.41,2547.2,2547.0,0.39255]
[1726874221883,1.57429,2547.5,2547.0,0.39255]
[1726874222178,1.41,2547.1,2547.0,0.39255]
[1726874222578,0.395,2547.5,2547.0,3.9264]
[1726874222770,1.41,2547.4,2547.1,0.39252]
[1726874222978,1.41,2547.4,2546.9,5.19122476]
[1726874222979,1.41,2547.4,2547.2,0.79332]
[1726874223282,1.41,2547.4,2547.3,0.754]
[1726874224685,1.41,2547.4,2547.3,1.14651]
[1726874225384,1.41,2547.4,2547.3,0.754]
[1726874228681,1.41,2547.4,2547.2,0.79332]
[1726874228682,1.41,2547.4,2547.2,0.4008]
[1726874228886,4.6178,2547.3,2546.9,0.39256]
[1726874229076,1.41,2547.1,2547.0,0.4038]
[1726874229582,1.41,2547.1,2547.0,0.79635]
[1726874229783,1.41,2547.1,2547.0,4.72275]
[1726874229982,1.41,2547.1,2547.0,0.79635]
[1726874232190,1.41,2547.1,2547.0,0.4038]
[1726874232381,1.41,2547.1,2547.0,0.79635]
[1726874236789,1.41,2547.1,2547.0,0.4038]
[1726874237390,1.41,2547.1,2547.0,0.79635]
[1726874237983,1.41,2547.1,2547.0,0.4038]
[1726874239289,1.41,2547.1,2547.0,0.79635]
[1726874246396,1.41,2547.1,2547.0,2.08205833]
[1726874246797,1.41,2547.1,2547.0,0.79635]
[1726874247491,1.41,2547.1,2547.0,2.08212453]
[1726874247696,1.41,2547.1,2547.0,0.79635]
[1726874247891,1.41,2547.1,2547.0,2.08213997]
[1726874248092,1.41,2547.1,2547.0,2.08212686]
[1726874248293,1.41,2547.1,2547.0,0.79635]
[1726874248492,1.41,2547.1,2547.0,2.08213666]
[1726874248693,1.41,2547.1,2547.0,2.08217432]
[1726874248895,1.41,2547.1,2547.0,2.08216192]
[1726874252300,1.41,2547.1,2547.0,3.62598668]
[1726874252504,1.8083,2547.2,2547.1,0.39254]
[1726874252807,1.41,2547.5,2547.1,6.75625158]
[1726874253009,1.41,2547.5,2547.3,0.3925]
[1726874253206,1.41,2547.5,2547.4,0.4037]
[1726874257112,2.94747176,2547.5,2547.4,0.4037]
[1726874260908,2.05400904,2547.8,2547.4,15.97558774]
[1726874261117,1.7916,2547.9,2547.7,0.39244]
[1726874261316,1.7916,2547.9,2547.7,1.42092774]
[1726874261705,4.9994,2547.9,2547.7,1.02848774]
[1726874261904,2.18402,2547.9,2547.7,1.02848774]
[1726874262112,4.9994,2547.9,2547.7,1.02848774]
[1726874262911,1.41,2547.8,2547.7,1.02848774]
[1726874264118,1.41,2547.8,2547.7,1.43538774]
[1726874265509,1.41,2547.8,2547.7,0.4069]
[1726874265710,1.41,2547.8,2547.7,1.43538774]
[1726874266516,1.41,2547.8,2547.7,0.4069]
[1726874283735,0.39245,2547.7,2547.4,1.39448774]
[1726874283926,1.41,2547.5,2547.4,1.02848774]
[1726874284325,1.41,2547.5,2547.3,0.4]
[1726874284521,1.41,2547.5,2547.3,1.42848774]
[1726874284727,1.41,2547.5,2547.3,0.4]
[1726874285128,1.41,2547.5,2547.3,0.79251]
[1726874285626,1.41,2547.5,2547.3,0.4]
[1726874286439,1.41,2547.5,2547.3,1.42848774]
[1726874289236,1.41,2547.5,2547.3,1.82099774]
[1726874289543,1.41,2547.5,2547.4,1.02848774]
[1726874293133,1.80248,2547.5,2547.3,1.02848774]
[1726874293440,1.41,2547.5,2547.1,2.56581774]
[1726874293635,1.41,2547.3,2547.2,0.39252]
[1726874293936,1.41,2547.3,2547.1,2.19981774]
[1726874294741,1.8059,2547.3,2547.1,2.19981774]
[1726874295644,1.8059,2547.3,2547.1,1.40118774]
[1726874295837,0.8164,2547.2,2547.1,1.42102774]
[1726874296238,0.8164,2547.2,2547.0,1.42102774]
[1726874296447,0.8164,2547.2,2547.1,0.39254]
[1726874297244,0.8164,2547.2,2547.1,1.42102774]
[1726874298637,0.8164,2547.2,2547.1,0.39254]
[1726874298953,0.8164,2547.2,2547.1,1.42102774]
[1726874299251,1.8059,2547.3,2547.1,1.42102774]
[1726874299640,1.8059,2547.3,2547.2,0.38]
[1726874306743,1.8059,2547.3,2547.2,0.77252]
[1726874307337,1.8059,2547.3,2547.2,0.38]
[1726874315444,1.41,2547.3,2547.2,0.38]
[1726874315649,1.41,2547.3,2547.2,0.7913]
[1726874316442,3.2078,2547.4,2547.2,0.7913]
[1726874316647,0.7806,2547.5,2547.2,1.81978774]
[1726874316846,0.7806,2547.5,2547.3,0.3925]
[1726874317046,2.1906,2547.5,2547.3,1.42098774]
[1726874317247,2.1906,2547.5,2547.3,0.3925]
[1726874317457,2.1906,2547.5,2547.3,1.42098774]
[1726874318163,2.1906,2547.5,2547.3,0.3925]
[1726874318351,2.1906,2547.5,2547.3,1.42098774]
[1726874321564,2.1906,2547.5,2547.4,1.02848774]
[1726874327565,2.1906,2547.5,2547.4,2.32151092]
[1726874327760,2.1906,2547.5,2547.4,1.02848774]
[1726874328560,2.1906,2547.5,2547.4,2.32187383]
[1726874329166,2.1906,2547.5,2547.4,1.02848774]
[1726874329462,2.1906,2547.5,2547.4,2.32187323]
[1726874329661,2.1906,2547.5,2547.4,1.29338549]
[1726874330264,2.1906,2547.5,2547.4,2.32272773]
[1726874330461,2.1906,2547.5,2547.4,2.83721025]
[1726874330867,2.1906,2547.5,2547.4,2.32270432]
[1726874331265,2.1906,2547.5,2547.4,1.29338549]
[1726874331462,2.1906,2547.5,2547.4,2.32290941]
[1726874333472,2.1906,2547.5,2547.4,2.32289004]
[1726874334171,2.1906,2547.5,2547.4,1.29358251]
[1726874334377,2.1906,2547.5,2547.4,2.3229009]
[1726874335264,2.1906,2547.5,2547.4,2.32294012]
[1726874335762,3.72762606,2547.5,2547.4,1.02935386]
[1726874336167,2.1906,2547.5,2547.4,2.32298423]
[1726874336567,2.1906,2547.5,2547.4,1.29363037]
[1726874337075,2.1906,2547.5,2547.4,2.3230235]
[1726874337263,2.1906,2547.5,2547.4,2.83745513]
[1726874337465,2.1906,2547.5,2547.4,2.32302346]
[1726874337666,2.1906,2547.5,2547.4,2.32305651]
[1726874337873,2.1906,2547.5,2547.4,1.29363037]
[1726874338069,2.1906,2547.5,2547.4,2.32307283]
[1726874338276,2.1906,2547.5,2547.4,1.29363037]
[1726874338570,2.1906,2547.5,2547.4,2.83745513]
[1726874338769,2.1906,2547.5,2547.4,2.32309472]
[1726874339072,2.1906,2547.5,2547.4,1.29363037]
[1726874339774,2.1906,2547.5,2547.4,2.83745513]
[1726874339974,2.1906,2547.5,2547.4,1.29363037]
[1726874340668,2.1906,2547.5,2547.4,2.83745513]
[1726874341271,2.1906,2547.5,2547.4,1.29363037]
[1726874341567,2.1906,2547.5,2547.4,2.83745513]
[1726874342179,2.1906,2547.5,2547.4,1.29363037]
[1726874342366,2.1906,2547.5,2547.4,2.32322283]
[1726874342683,2.1906,2547.5,2547.4,1.29376304]
[1726874342871,2.1906,2547.5,2547.4,2.32326997]
[1726874343073,2.1906,2547.5,2547.4,2.8375878]
[1726874343375,2.1906,2547.5,2547.4,3.86708278]
[1726874343577,2.1906,2547.5,2547.4,1.29376304]
[1726874343883,3.72762606,2547.5,2547.4,2.32330063]
[1726874344175,3.72762606,2547.5,2547.4,2.3233062]
[1726874344476,3.72762606,2547.5,2547.4,1.29376304]
[1726874344868,2.1906,2547.5,2547.4,2.8375878]
[1726874345074,3.72762606,2547.5,2547.4,2.32335336]
[1726874345374,3.72762606,2547.5,2547.4,1.29376304]
[1726874345674,3.72762606,2547.5,2547.4,2.32337547]
[1726874345976,3.72762606,2547.5,2547.4,2.32353768]
[1726874346185,3.72762606,2547.5,2547.4,1.02961243]
[1726874346483,3.72762606,2547.5,2547.4,2.32359714]
[1726874347188,3.72762606,2547.5,2547.4,2.3235976]
[1726874347485,0.39249,2547.4,2547.3,1.02964217]
[1726874347779,0.39249,2547.4,2547.1,1.93635476]
[1726874347780,2.43992084,2547.4,2547.2,1.02964217]
[1726874347986,3.33926783,2547.3,2547.2,1.42216217]
[1726874348181,3.33926783,2547.3,2547.2,1.02964217]
[1726874350181,3.33926783,2547.3,2547.1,1.42217217]
[1726874350386,0.7758,2547.2,2547.1,0.39253]
[1726874350575,3.9836,2547.2,2547.1,1.68638212]
[1726874350884,0.7758,2547.2,2547.1,1.68638212]
[1726874351079,0.7758,2547.2,2547.1,2.71598063]
[1726874351386,1.16832,2547.2,2547.1,1.29385212]
[1726874351587,5.51916783,2547.2,2547.1,1.029529]
[1726874351886,5.91168783,2547.2,2547.1,1.029529]
[1726874352080,5.91168783,2547.2,2547.0,1.029529]
[1726874352391,1.41,2547.1,2547.0,1.422079]
[1726874352590,1.41,2547.1,2547.0,1.68627377]
[1726874352886,1.41,2547.1,2547.0,2.71574887]
[1726874353093,1.41,2547.1,2547.0,2.71574571]
[1726874353384,1.41,2547.1,2547.0,1.42202194]
[1726874353584,1.41,2547.1,2547.0,2.71558882]
[1726874353887,1.41,2547.1,2547.0,2.71559803]
[1726874354185,1.41,2547.1,2547.0,2.32293072]
[1726874354490,1.41,2547.1,2547.0,2.32289435]
[1726874355182,1.41,2547.1,2547.0,1.02947194]
[1726874355381,1.41,2547.1,2547.0,2.3227863]
[1726874355683,1.41,2547.1,2547.0,1.02947194]
[1726874355887,1.41,2547.1,2547.0,2.32277454]
[1726874356288,1.41,2547.1,2547.0,1.02947194]
[1726874356490,1.41,2547.1,2547.0,2.32274393]
[1726874356689,1.41,2547.1,2547.0,1.02947194]
[1726874358685,1.41,2547.1,2547.0,1.42202194]
[1726874358991,1.41,2547.1,2547.0,2.32199716]
[1726874359497,1.41,2547.1,2547.0,1.02894652]
[1726874359682,1.41,2547.1,2547.0,2.32198798]
[1726874359877,1.41,2547.1,2547.0,2.32197885]
[1726874360085,1.41,2547.1,2547.0,1.02894652]
[1726874360279,1.41,2547.1,2547.0,2.32192327]
[1726874360685,1.41,2547.1,2547.0,2.83680151]
[1726874361187,1.41,2547.1,2547.0,2.32183074]
[1726874361388,1.41,2547.1,2547.0,2.83680151]
[1726874361588,1.41,2547.1,2547.0,2.83676827]
[1726874362398,1.41,2547.1,2547.0,2.32181241]
[1726874362597,1.41,2547.1,2547.0,2.83676827]
[1726874363095,1.41,2547.1,2547.0,1.02886012]
[1726874363595,1.41,2547.1,2546.9,2.32528476]
[1726874363596,1.41,2547.1,2546.9,1.81032012]
[1726874363795,1.41,2547.1,2547.0,1.02886012]
[1726874366597,1.41,2547.1,2546.9,1.81032012]
[1726874373701,1.41,2547.1,2546.9,1.41776012]
[1726874374004,1.7961,2547.1,2546.9,1.41776012]
[1726874374504,1.7961,2547.1,2546.9,1.81033012]
[1726874374710,5.0039,2547.1,2546.9,1.81033012]
[1726874375913,1.7961,2547.1,2546.9,1.81033012]
[1726874377015,1.7961,2547.1,2547.0,1.02886012]
[1726874377313,1.7961,2547.1,2546.9,1.81033012]
[1726874379117,1.7961,2547.1,2546.9,1.41776012]
[1726874379418,1.7961,2547.1,2546.9,1.81033012]
[1726874382122,5.0039,2547.1,2546.9,1.81033012]
[1726874382328,5.0039,2547.1,2546.9,1.41776012]
[1726874383018,5.0039,2547.1,2546.9,1.81033012]
[1726874383816,0.377,2547.0,2546.9,1.02886012]
[1726874384115,0.377,2547.0,2546.8,1.80104012]
[1726874384319,1.41,2546.9,2546.8,1.80104012]
[1726874384528,1.41,2546.9,2546.8,3.09416131]
[1726874385416,1.41,2546.9,2546.8,1.80104012]
[1726874385719,1.41,2546.9,2546.8,3.0943247]
[1726874385918,1.41,2546.9,2546.8,3.09432807]
[1726874386216,1.41,2546.9,2546.8,3.09433279]
[1726874386925,1.41,2546.9,2546.8,1.80104012]
[1726874387224,1.41,2546.9,2546.8,3.09429355]
[1726874389920,1.41,2546.9,2546.8,2.70171355]
[1726874390520,1.41,2546.9,2546.8,2.06544343]
[1726874390724,1.41,2546.9,2546.8,3.60970573]
[1726874391027,1.41,2546.9,2546.8,2.06588097]
[1726874391328,1.41,2546.9,2546.8,3.60970573]
[1726874393029,1.41,2546.9,2546.8,3.74876683]
[1726874393219,1.41,2546.9,2546.8,2.20493877]
[1726874393621,1.41,2546.9,2546.8,1.67329097]
[1726874393821,1.41,2546.9,2546.8,2.20503669]
[1726874395629,1.41,2546.9,2546.8,0.91134572]
[1726874395833,1.41,2546.9,2546.8,2.20562741]
[1726874396128,1.80257,2546.9,2546.8,2.20562741]
[1726874396327,7.26453783,2546.9,2546.8,1.03006623]
[1726874396522,7.65553783,2546.9,2546.8,1.03006623]
[1726874396717,6.11997,2546.9,2546.8,1.03006623]
[1726874397229,7.65572791,2546.9,2546.8,1.03006623]
[1726874397422,0.39259,2546.8,2546.7,1.03006623]
[1726874397623,0.39262,2546.6,2546.5,1.03006623]
[1726874397825,3.2078,2546.6,2546.5,1.03015504]
[1726874398025,0.39263,2546.5,2546.4,1.03015504]
[1726874398224,2.20473,2546.5,2546.4,1.03015504]
[1726874398630,3.74025412,2546.5,2546.3,1.03015504]
[1726874398824,0.80315,2546.4,2546.2,2.31161772]
[1726874399026,0.80315,2546.4,2546.3,1.29393459]
[1726874399328,0.80315,2546.4,2546.3,2.32331726]
[1726874399730,0.80315,2546.4,2546.3,1.02938267]
[1726874399930,0.80315,2546.4,2546.3,2.32287483]
[1726874400234,0.80315,2546.4,2546.3,2.32285604]
[1726874400432,0.80315,2546.4,2546.3,1.02938267]
[1726874400642,0.80315,2546.4,2546.3,2.3228551]
[1726874400829,2.21315,2546.4,2546.3,1.02938267]
[1726874401024,2.21315,2546.4,2546.3,2.32284763]
[1726874401337,2.21315,2546.4,2546.3,2.32278866]
[1726874401737,2.21315,2546.4,2546.3,2.32255269]
[1726874402039,2.21315,2546.4,2546.3,1.02908773]
[1726874402239,2.21315,2546.4,2546.3,2.32221428]
[1726874402740,2.21315,2546.4,2546.3,1.02908773]
[1726874402941,1.8205,2546.4,2546.3,1.02908773]
[1726874405450,3.2078,2546.6,2546.3,1.42173773]
[1726874405735,1.41,2546.7,2546.5,1.02908773]
[1726874406038,1.41,2546.7,2546.6,0.7726]
[1726874423049,1.8026,2546.7,2546.6,0.7726]
[1726874423246,1.41,2546.7,2546.6,0.7726]
[1726874425257,1.41,2546.7,2546.6,1.80168773]
[1726874425753,4.6178,2546.7,2546.6,1.80168773]
[1726874427157,4.6178,2546.7,2546.6,0.7726]
[1726874428053,4.6178,2546.7,2546.6,1.80168773]
[1726874428353,4.6178,2546.7,2546.6,0.7726]
[1726874428951,4.6178,2546.7,2546.6,1.80168773]
[1726874430046,5.0104,2546.7,2546.6,1.80168773]
[1726874430253,4.6178,2546.7,2546.6,1.80168773]
[1726874433260,1.41,2546.7,2546.6,1.80168773]
[1726874433861,4.6178,2546.7,2546.6,1.80168773]
[1726874434264,1.41,2546.7,2546.6,1.80168773]
[1726874434564,4.6178,2546.7,2546.6,1.80168773]
[1726874436058,1.41,2546.7,2546.6,1.80168773]
[1726874436563,4.6178,2546.7,2546.6,1.80168773]
[1726874439366,1.41,2546.7,2546.6,1.80168773]
[1726874439563,4.6178,2546.7,2546.6,1.80168773]
[1726874440265,4.6178,2546.7,2546.6,3.09565846]
[1726874440461,1.41,2546.7,2546.6,3.09565846]
[1726874440662,4.6178,2546.7,2546.6,3.09565846]
[1726874441058,1.41,2546.7,2546.6,3.09565846]
[1726874441266,4.6178,2546.7,2546.6,3.09565846]
[1726874442162,6.15332412,2546.7,2546.6,2.06657073]
[1726874442565,2.94552412,2546.7,2546.6,2.06657073]
[1726874442763,6.15332412,2546.7,2546.6,2.06693694]
[1726874443268,6.15332412,2546.7,2546.6,3.61188466]
[1726874443566,6.15332412,2546.7,2546.6,2.06693694]
[1726874444169,6.15332412,2546.7,2546.6,3.61199551]
[1726874444464,2.94552412,2546.7,2546.6,3.61199551]
[1726874444662,6.15332412,2546.7,2546.6,3.61199551]
[1726874445058,2.94552412,2546.7,2546.6,3.61199551]
[1726874445259,6.15332412,2546.7,2546.6,3.61199551]
[1726874447671,2.94552412,2546.7,2546.6,3.61199551]
[1726874447870,6.54592412,2546.7,2546.6,3.61199551]
[1726874448081,3.33812412,2546.7,2546.6,3.61199551]
[1726874448869,6.54592412,2546.7,2546.6,3.61199551]
[1726874450259,6.54592412,2546.7,2546.6,4.1440805]
[1726874451573,6.54592412,2546.7,2546.6,2.59913278]
[1726874452370,5.0104,2546.7,2546.6,2.59913278]
[1726874452569,6.54686487,2546.7,2546.6,2.60008676]
[1726874452765,6.54686487,2546.7,2546.6,2.60020768]
[1726874453272,6.15426487,2546.7,2546.6,2.60020768]
[1726874454266,6.54686487,2546.7,2546.6,2.60020768]
[1726874456073,6.15426487,2546.7,2546.6,2.60020768]
[1726874456569,6.15426487,2546.7,2546.6,2.99282768]
[1726874456874,6.15426487,2546.7,2546.6,5.05044517]
[1726874457072,6.15426487,2546.7,2546.6,4.65782517]
[1726874457467,6.15426487,2546.7,2546.6,4.65780728]
[1726874458471,6.15426487,2546.7,2546.6,4.65780719]
[1726874458676,6.15426487,2546.7,2546.6,5.05042719]
[1726874459076,6.15426487,2546.7,2546.6,4.65780719]
[1726874459876,4.74426487,2546.7,2546.6,8.97682719]
[1726874460077,3.2078,2546.7,2546.6,9.50988763]
[1726874460472,3.2078,2546.7,2546.6,10.86510592]
[1726874460673,4.6178,2546.7,2546.6,10.86510592]
[1726874461078,4.6178,2546.7,2546.6,10.86498062]
[1726874461378,4.6178,2546.7,2546.6,12.92654598]
[1726874461581,4.6178,2546.7,2546.6,11.03912178]
[1726874461877,4.6178,2546.7,2546.6,11.57130549]
[1726874462979,1.41,2546.7,2546.6,11.57130549]
[1726874463690,1.41,2546.7,2546.6,7.64490549]
[1726874463871,1.41,2546.7,2546.6,11.57130549]
[1726874464875,1.41,2546.7,2546.6,8.97755642]
[1726874465081,1.41,2546.7,2546.6,10.86449908]
[1726874465480,1.41,2546.7,2546.6,10.0131767]
[1726874465679,1.41,2546.7,2546.6,11.57050283]
[1726874465880,1.41,2546.7,2546.6,10.36082485]
[1726874466072,1.41,2546.7,2546.6,10.86438287]
[1726874466275,1.41,2546.7,2546.6,7.6441063]
[1726874466478,1.41,2546.7,2546.6,5.05348202]
[1726874466780,1.41,2546.7,2546.6,7.64321494]
[1726874467381,1.41,2546.7,2546.6,7.64322833]
[1726874468287,1.41,2546.7,2546.6,7.64313746]
[1726874468485,1.41,2546.7,2546.6,7.64306099]
[1726874469981,2.73586487,2547.1,2546.6,19.08107179]
[1726874470276,2.94646487,2547.2,2547.0,2.45293726]
[1726874470485,2.94646487,2547.2,2547.1,3.22226933]
[1726874470884,5.13016487,2547.3,2547.1,3.61479933]
[1726874471085,4.74426487,2547.3,2547.2,2.32385219]
[1726874471282,4.74426487,2547.3,2547.2,1.29408351]
[1726874471589,3.73606487,2547.4,2547.2,1.02934765]
[1726874471885,3.2078,2547.3,2547.2,1.02934765]
[1726874472085,4.74426487,2547.3,2547.2,1.02934765]
[1726874472390,4.74426487,2547.3,2547.1,0.7902]
[1726874472391,4.74426487,2547.3,2547.1,1.81954765]
[1726874472581,1.8115,2547.2,2547.1,1.81954765]
[1726874472780,1.8115,2547.2,2547.1,3.11287512]
[1726874473593,1.8115,2547.2,2547.1,0.3823]
[1726874473885,1.8115,2547.2,2547.1,1.41164765]
[1726874474687,1.8115,2547.2,2547.1,0.3823]
[1726874481794,1.8115,2547.2,2547.0,1.42189765]
[1726874482099,0.7647,2547.1,2547.0,1.42189765]
[1726874485290,0.7647,2547.1,2547.0,1.02934765]
[1726874485497,0.7647,2547.1,2546.9,1.42190765]
[1726874485692,0.7647,2547.1,2547.0,0.39255]
[1726874485887,0.39255,2547.0,2546.9,1.02934765]
[1726874486090,0.39259,2546.8,2546.7,0.366]
[1726874486296,3.2078,2546.8,2546.5,1.41034765]
[1726874486597,1.41,2546.6,2546.5,1.41034765]
[1726874486989,1.41,2546.6,2546.5,1.80297765]
[1726874487293,1.80262,2546.6,2546.5,1.02934765]
[1726874487493,1.80263,2546.6,2546.4,1.02934765]
[1726874487794,4.6178,2546.5,2546.4,1.02934765]
[1726874487993,4.6178,2546.5,2546.4,2.32172223]
[1726874488392,4.6178,2546.5,2546.4,2.71437223]
[1726874489388,4.6178,2546.5,2546.4,2.32172223]
[1726874489588,1.41,2546.5,2546.4,2.32169969]
[1726874489794,4.6178,2546.5,2546.4,2.32169969]
[1726874492097,4.6178,2546.5,2546.4,1.02934765]
[1726874492393,4.6178,2546.5,2546.4,1.42199765]
[1726874492594,4.6178,2546.5,2546.3,4.42497602]